[Event "Titled Tuesday Blitz March 07 Early 2023"]
[White "Zacurdajev, Dmitry"]
[Black "Ciuffoletti, Paolo"]
[WhiteFideId "4196309"]
[BlackFideId "807630"]
[WhiteElo "2179"]
[BlackElo "2143"]
[Result "1-0"]
[Round "05"]
[TimeControl "180+2"]
[Date "2023.03.07"]
[WhiteClock "0:00:19"]
[BlackClock "0:00:04"]

1. d4 {[%clk 0:02:46]}  d5 {[%clk 0:02:57]} 2. c4 {[%clk 0:02:45]}  c6 {[%clk 0:02:57]} 3. Nc3 {[%clk 0:02:46]}  Nf6 {[%clk 0:02:57]} 4. Nf3 {[%clk 0:02:46]}  dxc4 {[%clk 0:02:56]} 5. a4 {[%clk 0:02:44]}  e6 {[%clk 0:02:55]} 6. e3 {[%clk 0:02:43]}  c5 {[%clk 0:02:54]} 7. Bxc4 {[%clk 0:02:43]}  Nc6 {[%clk 0:02:54]} 8. d5 {[%clk 0:02:27]}  exd5 {[%clk 0:02:51]} 9. Nxd5 {[%clk 0:02:28]}  Be6 {[%clk 0:02:48]} 10. Nxf6+ {[%clk 0:02:22]}  Qxf6 {[%clk 0:02:47]} 11. Bxe6 {[%clk 0:02:22]}  Qxe6 {[%clk 0:02:46]} 12. O-O {[%clk 0:02:21]}  Be7 {[%clk 0:02:45]} 13. Bd2 {[%clk 0:02:08]}  O-O {[%clk 0:02:41]} 14. Bc3 {[%clk 0:02:08]}  Rfd8 {[%clk 0:02:26]} 15. Qc2 {[%clk 0:02:08]}  Rac8 {[%clk 0:02:17]} 16. Rfd1 {[%clk 0:02:06]}  h6 {[%clk 0:02:11]} 17. h3 {[%clk 0:02:01]}  Nb4 {[%clk 0:01:59]} 18. Bxb4 {[%clk 0:01:59]}  cxb4 {[%clk 0:01:54]} 19. Rxd8+ {[%clk 0:01:58]}  Bxd8 {[%clk 0:01:48]} 20. Qd2 {[%clk 0:01:56]}  a5 {[%clk 0:01:36]} 21. Nd4 {[%clk 0:01:45]}  Qc4 {[%clk 0:01:21]} 22. Nf5 {[%clk 0:01:28]}  Bf6 {[%clk 0:01:07]} 23. Nd6 {[%clk 0:01:12]}  Qc2 {[%clk 0:01:05]} 24. Qd5 {[%clk 0:01:12]}  Rc7 {[%clk 0:00:45]} 25. Qxa5 {[%clk 0:00:45]}  Rd7 {[%clk 0:00:35]} 26. Nxb7 {[%clk 0:00:29]}  Qxb2 {[%clk 0:00:19]} 27. Rf1 {[%clk 0:00:21]}  Qc3 {[%clk 0:00:17]} 28. Nc5 {[%clk 0:00:20]}  Rd8 {[%clk 0:00:14]} 29. Ne4 {[%clk 0:00:19]}  Qc4 {[%clk 0:00:04]} 30. Nxf6+ {[%clk 0:00:19]}  gxf6 {[%clk 0:00:04]} 31. Qxd8+ {[%clk 0:00:19]} 1-0


[Site "https://www.chess.com"]

[Event "Titled Tuesday Blitz March 07 Early 2023"]
[White "Dinu, Dumitru-Daniel"]
[Black "Galchenko, Matvey"]
[WhiteFideId "1208403"]
[BlackFideId "24175480"]
[WhiteElo "2240"]
[BlackElo "2404"]
[Result "0-1"]
[Round "05"]
[TimeControl "180+2"]
[Date "2023.03.07"]
[WhiteClock "0:00:03"]
[BlackClock "0:01:37"]

1. e4 {[%clk 0:02:59]}  e6 {[%clk 0:02:42]} 2. d4 {[%clk 0:02:59]}  d5 {[%clk 0:02:43]} 3. exd5 {[%clk 0:03:00]}  exd5 {[%clk 0:02:43]} 4. Nf3 {[%clk 0:02:58]}  Nf6 {[%clk 0:02:43]} 5. Bd3 {[%clk 0:02:58]}  c5 {[%clk 0:02:44]} 6. O-O {[%clk 0:02:56]}  c4 {[%clk 0:02:43]} 7. Re1+ {[%clk 0:02:57]}  Be7 {[%clk 0:02:44]} 8. Bf1 {[%clk 0:02:57]}  O-O {[%clk 0:02:45]} 9. b3 {[%clk 0:02:55]}  cxb3 {[%clk 0:02:46]} 10. axb3 {[%clk 0:02:55]}  Nc6 {[%clk 0:02:46]} 11. Ba3 {[%clk 0:02:40]}  Bxa3 {[%clk 0:02:38]} 12. Rxa3 {[%clk 0:02:38]}  Bf5 {[%clk 0:02:39]} 13. Bd3 {[%clk 0:02:20]}  Bxd3 {[%clk 0:02:36]} 14. Qxd3 {[%clk 0:02:21]}  Rc8 {[%clk 0:02:37]} 15. c3 {[%clk 0:02:16]}  Re8 {[%clk 0:02:35]} 16. Rxe8+ {[%clk 0:01:58]}  Qxe8 {[%clk 0:02:36]} 17. Nbd2 {[%clk 0:01:57]}  Ne4 {[%clk 0:02:33]} 18. Ra1 {[%clk 0:01:54]}  f5 {[%clk 0:02:31]} 19. Re1 {[%clk 0:01:48]}  Qd7 {[%clk 0:02:25]} 20. h3 {[%clk 0:01:24]}  Qd6 {[%clk 0:02:16]} 21. Qe3 {[%clk 0:01:07]}  Ne7 {[%clk 0:02:12]} 22. Nxe4 {[%clk 0:01:03]}  dxe4 {[%clk 0:02:13]} 23. Ne5 {[%clk 0:00:55]}  Nd5 {[%clk 0:02:14]} 24. Qg5 {[%clk 0:00:55]}  Qf6 {[%clk 0:02:09]} 25. Qxf6 {[%clk 0:00:40]}  gxf6 {[%clk 0:02:10]} 26. Nc4 {[%clk 0:00:35]}  Rc6 {[%clk 0:02:09]} 27. Ne3 {[%clk 0:00:22]}  Nxc3 {[%clk 0:02:00]} 28. Nxf5 {[%clk 0:00:20]}  Kf7 {[%clk 0:02:00]} 29. g4 {[%clk 0:00:18]}  Ke6 {[%clk 0:01:54]} 30. Kg2 {[%clk 0:00:16]}  Rc7 {[%clk 0:01:53]} 31. f3 {[%clk 0:00:16]}  Kd5 {[%clk 0:01:52]} 32. fxe4+ {[%clk 0:00:13]}  Nxe4 {[%clk 0:01:53]} 33. Ne3+ {[%clk 0:00:12]}  Kxd4 {[%clk 0:01:53]} 34. Nf5+ {[%clk 0:00:12]}  Kd5 {[%clk 0:01:52]} 35. Ne3+ {[%clk 0:00:11]}  Kc6 {[%clk 0:01:52]} 36. Nf5 {[%clk 0:00:06]}  Nc5 {[%clk 0:01:52]} 37. Nd4+ {[%clk 0:00:06]}  Kd5 {[%clk 0:01:50]} 38. Rd1 {[%clk 0:00:05]}  Ke4 {[%clk 0:01:48]} 39. Nb5 {[%clk 0:00:05]}  Rg7 {[%clk 0:01:44]} 40. b4 {[%clk 0:00:03]}  Ne6 {[%clk 0:01:38]} 41. Nxa7 {[%clk 0:00:03]}  Nf4+ {[%clk 0:01:37]} 42. Kg3 {[%clk 0:00:03]}  Ne2+ {[%clk 0:01:36]} 43. Kf2 {[%clk 0:00:03]}  Nc3 {[%clk 0:01:37]} 44. Nc8 {[%clk 0:00:03]}  Nxd1+ {[%clk 0:01:37]} 45. Ke1 {[%clk 0:00:03]}  Ne3 {[%clk 0:01:37]} 46. Nd6+ {[%clk 0:00:03]}  Kf3 {[%clk 0:01:37]} 47. Kd2 {[%clk 0:00:03]}  Rd7 {[%clk 0:01:37]} 0-1


[Site "https://www.chess.com"]

[Event "Titled Tuesday Blitz March 07 Early 2023"]
[White "Orozbaev, Eldiar"]
[Black "Ruge, Edison"]
[WhiteFideId "13802240"]
[BlackFideId "4401000"]
[WhiteElo "2201"]
[BlackElo "2175"]
[Result "1-0"]
[Round "05"]
[TimeControl "180+2"]
[Date "2023.03.07"]
[WhiteClock "0:00:17"]
[BlackClock "0:00:04"]

1. e4 {[%clk 0:03:00]}  e5 {[%clk 0:02:59]} 2. Nf3 {[%clk 0:03:00]}  Nc6 {[%clk 0:03:00]} 3. d4 {[%clk 0:02:59]}  exd4 {[%clk 0:02:58]} 4. c3 {[%clk 0:02:59]}  d3 {[%clk 0:02:57]} 5. Bxd3 {[%clk 0:02:58]}  Be7 {[%clk 0:02:57]} 6. O-O {[%clk 0:02:58]}  d6 {[%clk 0:02:57]} 7. Qc2 {[%clk 0:02:57]}  Nf6 {[%clk 0:02:58]} 8. Bf4 {[%clk 0:02:56]}  O-O {[%clk 0:02:57]} 9. Nbd2 {[%clk 0:02:56]}  Bg4 {[%clk 0:02:56]} 10. Rad1 {[%clk 0:02:56]}  Nd7 {[%clk 0:02:55]} 11. h3 {[%clk 0:02:55]}  Bh5 {[%clk 0:02:54]} 12. Rfe1 {[%clk 0:02:53]}  Nde5 {[%clk 0:02:51]} 13. Be2 {[%clk 0:02:53]}  Bg6 {[%clk 0:02:45]} 14. Nxe5 {[%clk 0:02:47]}  dxe5 {[%clk 0:02:41]} 15. Nf3 {[%clk 0:02:47]}  exf4 {[%clk 0:01:54]} 16. Rxd8 {[%clk 0:02:38]}  Raxd8 {[%clk 0:01:55]} 17. Bb5 {[%clk 0:02:35]}  Nb8 {[%clk 0:01:52]} 18. Ne5 {[%clk 0:02:30]}  c6 {[%clk 0:01:43]} 19. Nxg6 {[%clk 0:02:30]}  hxg6 {[%clk 0:01:41]} 20. Bc4 {[%clk 0:02:30]}  b5 {[%clk 0:01:39]} 21. Bb3 {[%clk 0:02:30]}  Nd7 {[%clk 0:01:37]} 22. e5 {[%clk 0:02:25]}  Nc5 {[%clk 0:01:36]} 23. e6 {[%clk 0:02:25]}  f5 {[%clk 0:01:29]} 24. a4 {[%clk 0:02:07]}  Nxb3 {[%clk 0:01:25]} 25. Qxb3 {[%clk 0:02:07]}  a6 {[%clk 0:01:25]} 26. axb5 {[%clk 0:02:03]}  axb5 {[%clk 0:01:24]} 27. c4 {[%clk 0:01:58]}  b4 {[%clk 0:01:23]} 28. Qa4 {[%clk 0:01:55]}  c5 {[%clk 0:01:14]} 29. Qa7 {[%clk 0:01:53]}  Rfe8 {[%clk 0:01:11]} 30. b3 {[%clk 0:01:39]}  Rd3 {[%clk 0:01:07]} 31. Re5 {[%clk 0:00:59]}  Kh7 {[%clk 0:00:56]} 32. Rd5 {[%clk 0:00:49]}  Rxb3 {[%clk 0:00:51]} 33. Qd7 {[%clk 0:00:47]}  Rb1+ {[%clk 0:00:51]} 34. Kh2 {[%clk 0:00:47]}  Bh4 {[%clk 0:00:21]} 35. g3 {[%clk 0:00:17]}  fxg3+ {[%clk 0:00:18]} 36. fxg3 {[%clk 0:00:18]}  Rb2+ {[%clk 0:00:17]} 37. Kg1 {[%clk 0:00:18]}  Re7 {[%clk 0:00:14]} 38. gxh4 {[%clk 0:00:17]}  Rb1+ {[%clk 0:00:09]} 39. Kf2 {[%clk 0:00:17]}  Rb2+ {[%clk 0:00:10]} 40. Ke1 {[%clk 0:00:17]}  Rb1+ {[%clk 0:00:04]} 41. Kd2 {[%clk 0:00:16]}  Rxd7 {[%clk 0:00:04]} 42. exd7 {[%clk 0:00:17]}  b3 {[%clk 0:00:04]} 43. d8=Q {[%clk 0:00:17]}  b2 {[%clk 0:00:04]} 44. Kc2 {[%clk 0:00:17]} 1-0


[Site "https://www.chess.com"]

[Event "Titled Tuesday Blitz March 07 Early 2023"]
[White "Orujov, Elshad"]
[Black "Bews, Steven"]
[WhiteFideId "13403540"]
[BlackFideId "2400529"]
[WhiteElo "2342"]
[BlackElo "2583"]
[Result "0-1"]
[Round "05"]
[TimeControl "180+2"]
[Date "2023.03.07"]
[WhiteClock "0:00:03"]
[BlackClock "0:00:31"]

1. e4 {[%clk 0:03:00]}  e5 {[%clk 0:02:59]} 2. Nf3 {[%clk 0:03:01]}  Nc6 {[%clk 0:02:59]} 3. Bb5 {[%clk 0:03:01]}  a6 {[%clk 0:02:54]} 4. Ba4 {[%clk 0:03:01]}  Nf6 {[%clk 0:02:54]} 5. O-O {[%clk 0:03:01]}  Bc5 {[%clk 0:02:53]} 6. Re1 {[%clk 0:03:00]}  O-O {[%clk 0:02:48]} 7. c3 {[%clk 0:02:58]}  b5 {[%clk 0:02:45]} 8. Bb3 {[%clk 0:02:58]}  d5 {[%clk 0:02:43]} 9. exd5 {[%clk 0:02:55]}  Nxd5 {[%clk 0:02:44]} 10. Nxe5 {[%clk 0:02:48]}  Nxe5 {[%clk 0:02:44]} 11. Rxe5 {[%clk 0:02:49]}  Bxf2+ {[%clk 0:02:36]} 12. Kh1 {[%clk 0:02:40]}  c6 {[%clk 0:02:36]} 13. Qf3 {[%clk 0:02:32]}  Bh4 {[%clk 0:02:24]} 14. d4 {[%clk 0:02:21]}  Bf6 {[%clk 0:02:20]} 15. Re1 {[%clk 0:02:19]}  Be6 {[%clk 0:02:18]} 16. Nd2 {[%clk 0:02:18]}  Qd7 {[%clk 0:02:12]} 17. Ne4 {[%clk 0:02:16]}  Be7 {[%clk 0:02:12]} 18. h3 {[%clk 0:02:12]}  h6 {[%clk 0:02:12]} 19. Bd2 {[%clk 0:02:09]}  Rae8 {[%clk 0:02:12]} 20. Rf1 {[%clk 0:02:04]}  f5 {[%clk 0:02:08]} 21. Nc5 {[%clk 0:01:57]}  Bxc5 {[%clk 0:02:08]} 22. dxc5 {[%clk 0:01:58]}  Nf6 {[%clk 0:01:42]} 23. Bxe6+ {[%clk 0:01:46]}  Qxe6 {[%clk 0:01:37]} 24. Qxf5 {[%clk 0:01:26]}  Qxf5 {[%clk 0:01:35]} 25. Rxf5 {[%clk 0:01:26]}  Re2 {[%clk 0:01:34]} 26. Bf4 {[%clk 0:01:04]}  Rxb2 {[%clk 0:01:29]} 27. a4 {[%clk 0:01:04]}  Nd5 {[%clk 0:01:26]} 28. Rxf8+ {[%clk 0:01:01]}  Kxf8 {[%clk 0:01:27]} 29. Bd6+ {[%clk 0:00:59]}  Kg8 {[%clk 0:01:26]} 30. axb5 {[%clk 0:00:58]}  axb5 {[%clk 0:01:25]} 31. Ra6 {[%clk 0:00:58]}  Nxc3 {[%clk 0:01:24]} 32. Rxc6 {[%clk 0:00:57]}  b4 {[%clk 0:01:24]} 33. Rc8+ {[%clk 0:00:54]}  Kh7 {[%clk 0:01:24]} 34. Be5 {[%clk 0:00:42]}  Re2 {[%clk 0:01:22]} 35. Bd4 {[%clk 0:00:20]}  Nb5 {[%clk 0:01:21]} 36. Bg1 {[%clk 0:00:17]}  Nc3 {[%clk 0:00:53]} 37. c6 {[%clk 0:00:14]}  Rc2 {[%clk 0:00:50]} 38. Rb8 {[%clk 0:00:12]}  Ne2 {[%clk 0:00:39]} 39. Rxb4 {[%clk 0:00:08]}  Rc1 {[%clk 0:00:36]} 40. c7 {[%clk 0:00:04]}  Rxg1+ {[%clk 0:00:35]} 41. Kh2 {[%clk 0:00:04]}  Rc1 {[%clk 0:00:36]} 42. Re4 {[%clk 0:00:04]}  Rxc7 {[%clk 0:00:30]} 43. Rxe2 {[%clk 0:00:04]}  Kg6 {[%clk 0:00:31]} 44. Rf2 {[%clk 0:00:05]}  Rc3 {[%clk 0:00:30]} 45. Rf3 {[%clk 0:00:06]}  Rxf3 {[%clk 0:00:30]} 46. gxf3 {[%clk 0:00:07]}  Kf5 {[%clk 0:00:30]} 47. Kg2 {[%clk 0:00:06]}  Kf4 {[%clk 0:00:30]} 48. Kf2 {[%clk 0:00:05]}  g5 {[%clk 0:00:29]} 49. Kg2 {[%clk 0:00:05]}  h5 {[%clk 0:00:29]} 50. Kf2 {[%clk 0:00:05]}  h4 {[%clk 0:00:29]} 51. Kg2 {[%clk 0:00:04]}  Ke3 {[%clk 0:00:29]} 52. Kh2 {[%clk 0:00:04]}  Kxf3 {[%clk 0:00:29]} 53. Kh1 {[%clk 0:00:04]}  Kg3 {[%clk 0:00:30]} 54. Kg1 {[%clk 0:00:03]}  Kxh3 {[%clk 0:00:31]} 0-1


[Site "https://www.chess.com"]

[Event "Titled Tuesday Blitz March 07 Early 2023"]
[White "Clawitter, Craig"]
[Black "Risteski, Emil"]
[WhiteFideId "2023105"]
[BlackFideId "15005267"]
[WhiteElo "2292"]
[BlackElo "2251"]
[Result "0-1"]
[Round "05"]
[TimeControl "180+2"]
[Date "2023.03.07"]
[WhiteClock "0:00:01"]
[BlackClock "0:00:19"]

1. e4 {[%clk 0:03:00]}  d6 {[%clk 0:02:53]} 2. d4 {[%clk 0:03:00]}  Nf6 {[%clk 0:02:54]} 3. Nc3 {[%clk 0:03:01]}  e5 {[%clk 0:02:54]} 4. Nf3 {[%clk 0:02:58]}  Nbd7 {[%clk 0:02:54]} 5. Be3 {[%clk 0:02:56]}  c6 {[%clk 0:02:53]} 6. a4 {[%clk 0:02:52]}  Be7 {[%clk 0:02:53]} 7. h3 {[%clk 0:02:52]}  O-O {[%clk 0:02:52]} 8. g4 {[%clk 0:02:49]}  exd4 {[%clk 0:02:41]} 9. Nxd4 {[%clk 0:02:47]}  Nc5 {[%clk 0:02:40]} 10. Bg2 {[%clk 0:02:47]}  h6 {[%clk 0:02:37]} 11. O-O {[%clk 0:02:45]}  Re8 {[%clk 0:02:38]} 12. b4 {[%clk 0:02:33]}  Ne6 {[%clk 0:02:32]} 13. Nf5 {[%clk 0:02:32]}  Bf8 {[%clk 0:02:32]} 14. b5 {[%clk 0:02:24]}  Qc7 {[%clk 0:02:14]} 15. Qd2 {[%clk 0:02:13]}  Nc5 {[%clk 0:01:58]} 16. Ng3 {[%clk 0:00:59]}  Be6 {[%clk 0:01:50]} 17. f4 {[%clk 0:00:44]}  Bc4 {[%clk 0:01:46]} 18. g5 {[%clk 0:00:39]}  Bxf1 {[%clk 0:01:40]} 19. gxf6 {[%clk 0:00:20]}  Bxg2 {[%clk 0:01:39]} 20. Qxg2 {[%clk 0:00:21]}  Kh7 {[%clk 0:01:22]} 21. Bd4 {[%clk 0:00:09]}  g6 {[%clk 0:01:19]} 22. f5 {[%clk 0:00:09]}  Nd7 {[%clk 0:00:54]} 23. Rf1 {[%clk 0:00:07]}  Ne5 {[%clk 0:00:53]} 24. fxg6+ {[%clk 0:00:07]}  fxg6 {[%clk 0:00:54]} 25. h4 {[%clk 0:00:07]}  Qf7 {[%clk 0:00:51]} 26. h5 {[%clk 0:00:06]}  g5 {[%clk 0:00:36]} 27. Nf5 {[%clk 0:00:06]}  Rad8 {[%clk 0:00:26]} 28. Ne3 {[%clk 0:00:04]}  Re6 {[%clk 0:00:20]} 29. Bxe5 {[%clk 0:00:03]}  Rxe5 {[%clk 0:00:19]} 30. Qg4 {[%clk 0:00:01]}  Rde8 {[%clk 0:00:19]} 31. Nf5 {[%clk 0:00:01]}  d5 {[%clk 0:00:19]} 32. exd5 {[%clk 0:00:01]}  cxd5 {[%clk 0:00:19]} 0-1


[Site "https://www.chess.com"]

[Event "Titled Tuesday Blitz March 07 Early 2023"]
[White "Migot, Tangi"]
[Black "Alhadad, Mahmoud"]
[WhiteFideId "662445"]
[BlackFideId "11501863"]
[WhiteElo "2524"]
[BlackElo "1955"]
[Result "1-0"]
[Round "05"]
[TimeControl "180+2"]
[Date "2023.03.07"]
[WhiteClock "0:00:13"]
[BlackClock "0:00:01"]

1. d4 {[%clk 0:03:00]}  d5 {[%clk 0:02:59]} 2. c4 {[%clk 0:03:01]}  Nc6 {[%clk 0:02:59]} 3. Nf3 {[%clk 0:02:51]}  Bg4 {[%clk 0:02:57]} 4. e3 {[%clk 0:02:51]}  e6 {[%clk 0:02:55]} 5. Qb3 {[%clk 0:02:48]}  Bb4+ {[%clk 0:02:52]} 6. Bd2 {[%clk 0:02:46]}  Bxd2+ {[%clk 0:02:48]} 7. Nbxd2 {[%clk 0:02:47]}  Nge7 {[%clk 0:02:47]} 8. Rc1 {[%clk 0:02:29]}  O-O {[%clk 0:02:40]} 9. Be2 {[%clk 0:02:28]}  Na5 {[%clk 0:02:32]} 10. Qa4 {[%clk 0:02:28]}  Nxc4 {[%clk 0:02:30]} 11. Bxc4 {[%clk 0:02:21]}  dxc4 {[%clk 0:02:30]} 12. Qxc4 {[%clk 0:02:10]}  c6 {[%clk 0:02:25]} 13. Ne5 {[%clk 0:02:10]}  Bh5 {[%clk 0:02:19]} 14. O-O {[%clk 0:02:08]}  Qd5 {[%clk 0:02:01]} 15. Qb4 {[%clk 0:01:51]}  Rfe8 {[%clk 0:01:44]} 16. Nb3 {[%clk 0:01:42]}  f6 {[%clk 0:01:23]} 17. Nd3 {[%clk 0:01:37]}  b6 {[%clk 0:01:23]} 18. Nf4 {[%clk 0:01:35]}  Qf5 {[%clk 0:01:10]} 19. Nxh5 {[%clk 0:01:16]}  Qxh5 {[%clk 0:01:11]} 20. a4 {[%clk 0:01:16]}  Rac8 {[%clk 0:00:42]} 21. a5 {[%clk 0:01:16]}  Nd5 {[%clk 0:00:38]} 22. Qd2 {[%clk 0:01:11]}  Qf7 {[%clk 0:00:34]} 23. e4 {[%clk 0:00:58]}  Ne7 {[%clk 0:00:33]} 24. Qb4 {[%clk 0:00:57]}  Qg6 {[%clk 0:00:26]} 25. f3 {[%clk 0:00:56]}  bxa5 {[%clk 0:00:20]} 26. Nxa5 {[%clk 0:00:56]}  f5 {[%clk 0:00:20]} 27. Rfe1 {[%clk 0:00:53]}  fxe4 {[%clk 0:00:19]} 28. Rxe4 {[%clk 0:00:53]}  Nd5 {[%clk 0:00:18]} 29. Qe1 {[%clk 0:00:49]}  Qg5 {[%clk 0:00:13]} 30. h4 {[%clk 0:00:31]}  Qh6 {[%clk 0:00:09]} 31. Rxc6 {[%clk 0:00:30]}  Rxc6 {[%clk 0:00:09]} 32. Nxc6 {[%clk 0:00:31]}  Nf4 {[%clk 0:00:07]} 33. Ne5 {[%clk 0:00:25]}  Rc8 {[%clk 0:00:06]} 34. Re3 {[%clk 0:00:21]}  Nd5 {[%clk 0:00:04]} 35. Rd3 {[%clk 0:00:18]}  Rc1 {[%clk 0:00:04]} 36. Rd1 {[%clk 0:00:18]}  Rxd1 {[%clk 0:00:04]} 37. Qxd1 {[%clk 0:00:19]}  Qe3+ {[%clk 0:00:04]} 38. Kh1 {[%clk 0:00:16]}  Nf4 {[%clk 0:00:04]} 39. Ng4 {[%clk 0:00:14]}  Ne2 {[%clk 0:00:03]} 40. Nxe3 {[%clk 0:00:13]}  Ng3+ {[%clk 0:00:01]} 41. Kh2 {[%clk 0:00:13]} 1-0


[Site "https://www.chess.com"]

[Event "Titled Tuesday Blitz March 07 Early 2023"]
[White "Gontcharov, Vladislav"]
[Black "Abrosimov, Vladimir"]
[WhiteFideId "4123492"]
[BlackFideId "4166892"]
[WhiteElo "2470"]
[BlackElo "2336"]
[Result "1-0"]
[Round "05"]
[TimeControl "180+2"]
[Date "2023.03.07"]
[WhiteClock "0:01:26"]
[BlackClock "0:00:03"]

1. d4 {[%clk 0:02:27]}  Nf6 {[%clk 0:02:07]} 2. c4 {[%clk 0:02:26]}  g6 {[%clk 0:02:06]} 3. Nc3 {[%clk 0:02:26]}  Bg7 {[%clk 0:02:06]} 4. Nf3 {[%clk 0:02:24]}  d6 {[%clk 0:02:06]} 5. Bg5 {[%clk 0:02:25]}  Nbd7 {[%clk 0:02:06]} 6. e3 {[%clk 0:02:25]}  O-O {[%clk 0:02:07]} 7. Be2 {[%clk 0:02:24]}  h6 {[%clk 0:02:04]} 8. Bh4 {[%clk 0:02:24]}  e5 {[%clk 0:02:02]} 9. dxe5 {[%clk 0:02:16]}  dxe5 {[%clk 0:02:02]} 10. Qc2 {[%clk 0:02:15]}  c6 {[%clk 0:02:00]} 11. O-O {[%clk 0:02:13]}  g5 {[%clk 0:01:59]} 12. Bg3 {[%clk 0:02:13]}  Nh5 {[%clk 0:01:59]} 13. Nd2 {[%clk 0:02:12]}  Nxg3 {[%clk 0:01:59]} 14. hxg3 {[%clk 0:02:13]}  Nc5 {[%clk 0:01:54]} 15. g4 {[%clk 0:02:12]}  Be6 {[%clk 0:01:49]} 16. Nde4 {[%clk 0:02:11]}  Nxe4 {[%clk 0:01:45]} 17. Nxe4 {[%clk 0:02:12]}  f5 {[%clk 0:01:43]} 18. gxf5 {[%clk 0:02:09]}  Bxf5 {[%clk 0:01:44]} 19. Bd3 {[%clk 0:02:08]}  Bxe4 {[%clk 0:01:42]} 20. Bxe4 {[%clk 0:02:07]}  Qe7 {[%clk 0:01:43]} 21. Rab1 {[%clk 0:02:02]}  Rfd8 {[%clk 0:01:39]} 22. b4 {[%clk 0:02:01]}  Rd6 {[%clk 0:01:29]} 23. c5 {[%clk 0:02:01]}  Rd7 {[%clk 0:01:28]} 24. Qe2 {[%clk 0:01:59]}  Rad8 {[%clk 0:01:27]} 25. Qg4 {[%clk 0:01:59]}  Qf6 {[%clk 0:01:03]} 26. a4 {[%clk 0:01:58]}  Kh8 {[%clk 0:01:01]} 27. b5 {[%clk 0:01:58]}  Bf8 {[%clk 0:00:55]} 28. Rfc1 {[%clk 0:01:55]}  Rd2 {[%clk 0:00:51]} 29. Qf3 {[%clk 0:01:49]}  Qxf3 {[%clk 0:00:50]} 30. gxf3 {[%clk 0:01:50]}  cxb5 {[%clk 0:00:36]} 31. axb5 {[%clk 0:01:49]}  Rc8 {[%clk 0:00:30]} 32. c6 {[%clk 0:01:46]}  bxc6 {[%clk 0:00:27]} 33. bxc6 {[%clk 0:01:45]}  Kg7 {[%clk 0:00:26]} 34. Rb7+ {[%clk 0:01:44]}  Kf6 {[%clk 0:00:24]} 35. Rxa7 {[%clk 0:01:37]}  Rd6 {[%clk 0:00:20]} 36. Kg2 {[%clk 0:01:36]}  Rd2 {[%clk 0:00:19]} 37. Kg3 {[%clk 0:01:35]}  h5 {[%clk 0:00:18]} 38. Rb1 {[%clk 0:01:32]}  h4+ {[%clk 0:00:14]} 39. Kg2 {[%clk 0:01:32]}  Bc5 {[%clk 0:00:13]} 40. Rh7 {[%clk 0:01:27]}  Bxe3 {[%clk 0:00:09]} 41. Rbb7 {[%clk 0:01:27]}  Rxf2+ {[%clk 0:00:08]} 42. Kh3 {[%clk 0:01:27]}  Rf8 {[%clk 0:00:03]} 43. Rh6# {[%clk 0:01:26]} 1-0


[Site "https://www.chess.com"]

[Event "Titled Tuesday Blitz March 07 Early 2023"]
[White "Chakravarthi Reddy, M"]
[Black "Avazkhonov, Alikhon"]
[WhiteFideId "25009532"]
[BlackFideId "14208504"]
[WhiteElo "2201"]
[BlackElo "1739"]
[Result "0-1"]
[Round "05"]
[TimeControl "180+2"]
[Date "2023.03.07"]
[WhiteClock "0:00:01"]
[BlackClock "0:00:08"]

1. c4 {[%clk 0:02:57]}  e5 {[%clk 0:02:59]} 2. Nc3 {[%clk 0:02:57]}  d6 {[%clk 0:03:00]} 3. d4 {[%clk 0:02:54]}  exd4 {[%clk 0:02:58]} 4. Qxd4 {[%clk 0:02:54]}  Nc6 {[%clk 0:02:55]} 5. Qe3+ {[%clk 0:02:55]}  Be7 {[%clk 0:02:54]} 6. Nf3 {[%clk 0:02:53]}  Nf6 {[%clk 0:02:54]} 7. a3 {[%clk 0:02:53]}  O-O {[%clk 0:02:55]} 8. Qd3 {[%clk 0:02:48]}  Re8 {[%clk 0:02:55]} 9. Bg5 {[%clk 0:02:48]}  h6 {[%clk 0:02:54]} 10. h4 {[%clk 0:02:47]}  Be6 {[%clk 0:02:51]} 11. e3 {[%clk 0:02:43]}  Na5 {[%clk 0:02:18]} 12. Nd2 {[%clk 0:02:43]}  Nd7 {[%clk 0:02:08]} 13. Bf4 {[%clk 0:02:32]}  Ne5 {[%clk 0:02:05]} 14. Bxe5 {[%clk 0:02:23]}  dxe5 {[%clk 0:02:06]} 15. Qc2 {[%clk 0:02:24]}  Qd7 {[%clk 0:02:01]} 16. Be2 {[%clk 0:02:17]}  Rad8 {[%clk 0:02:01]} 17. O-O-O {[%clk 0:02:10]}  Bf5 {[%clk 0:01:52]} 18. e4 {[%clk 0:02:07]}  Be6 {[%clk 0:01:51]} 19. Nf3 {[%clk 0:01:57]}  Qc8 {[%clk 0:01:49]} 20. Nd5 {[%clk 0:01:49]}  Bc5 {[%clk 0:01:46]} 21. b4 {[%clk 0:01:39]}  c6 {[%clk 0:01:44]} 22. Nc3 {[%clk 0:01:25]}  Bxb4 {[%clk 0:00:51]} 23. axb4 {[%clk 0:01:23]}  Nxc4 {[%clk 0:00:51]} 24. Bxc4 {[%clk 0:01:19]}  Bxc4 {[%clk 0:00:52]} 25. Rxd8 {[%clk 0:01:11]}  Qxd8 {[%clk 0:00:53]} 26. Rd1 {[%clk 0:01:08]}  Qb6 {[%clk 0:00:53]} 27. Qb2 {[%clk 0:00:58]}  a5 {[%clk 0:00:54]} 28. Nxe5 {[%clk 0:00:50]}  Rxe5 {[%clk 0:00:40]} 29. Nd5 {[%clk 0:00:49]}  cxd5 {[%clk 0:00:40]} 30. Qxe5 {[%clk 0:00:46]}  Qxb4 {[%clk 0:00:41]} 31. Qb2 {[%clk 0:00:43]}  Qxb2+ {[%clk 0:00:29]} 32. Kxb2 {[%clk 0:00:43]}  dxe4 {[%clk 0:00:30]} 33. Rd4 {[%clk 0:00:22]}  Bd3 {[%clk 0:00:31]} 34. f3 {[%clk 0:00:22]}  f5 {[%clk 0:00:31]} 35. h5 {[%clk 0:00:19]}  b5 {[%clk 0:00:29]} 36. g4 {[%clk 0:00:19]}  exf3 {[%clk 0:00:11]} 37. Rxd3 {[%clk 0:00:12]}  fxg4 {[%clk 0:00:12]} 38. Re3 {[%clk 0:00:09]}  f2 {[%clk 0:00:09]} 39. Re5 {[%clk 0:00:01]}  f1=Q {[%clk 0:00:08]} 0-1


[Site "https://www.chess.com"]

[Event "Titled Tuesday Blitz March 07 Early 2023"]
[White "Pino Perez, Lazaro"]
[Black "Thiel, Thomas"]
[WhiteFideId "3517055"]
[BlackFideId "4615964"]
[WhiteElo "2170"]
[BlackElo "2249"]
[Result "1-0"]
[Round "05"]
[TimeControl "180+2"]
[Date "2023.03.07"]
[WhiteClock "0:00:10"]
[BlackClock "0:00:41"]

1. d4 {[%clk 0:03:00]}  Nf6 {[%clk 0:02:57]} 2. Bf4 {[%clk 0:03:00]}  d5 {[%clk 0:02:56]} 3. e3 {[%clk 0:02:54]}  c5 {[%clk 0:02:56]} 4. Nf3 {[%clk 0:02:55]}  Nc6 {[%clk 0:02:55]} 5. Nbd2 {[%clk 0:02:52]}  cxd4 {[%clk 0:02:52]} 6. exd4 {[%clk 0:02:51]}  Bf5 {[%clk 0:02:51]} 7. c3 {[%clk 0:02:38]}  h6 {[%clk 0:02:45]} 8. Qb3 {[%clk 0:02:33]}  Qb6 {[%clk 0:02:45]} 9. Qxb6 {[%clk 0:02:07]}  axb6 {[%clk 0:02:45]} 10. Bb5 {[%clk 0:02:06]}  Nd7 {[%clk 0:02:41]} 11. h4 {[%clk 0:01:55]}  e6 {[%clk 0:02:40]} 12. O-O {[%clk 0:01:44]}  Be7 {[%clk 0:02:40]} 13. Rfe1 {[%clk 0:01:39]}  O-O {[%clk 0:02:39]} 14. g3 {[%clk 0:01:35]}  Rfc8 {[%clk 0:02:20]} 15. a4 {[%clk 0:01:33]}  Nf8 {[%clk 0:02:17]} 16. Nf1 {[%clk 0:01:19]}  Na7 {[%clk 0:01:49]} 17. Be2 {[%clk 0:01:14]}  Bc2 {[%clk 0:01:39]} 18. Ne3 {[%clk 0:01:08]}  Bb3 {[%clk 0:01:39]} 19. Nd2 {[%clk 0:01:03]}  Bc4 {[%clk 0:01:33]} 20. Ndxc4 {[%clk 0:00:58]}  dxc4 {[%clk 0:01:34]} 21. Nxc4 {[%clk 0:00:58]}  Bd8 {[%clk 0:01:31]} 22. h5 {[%clk 0:00:50]}  Nd7 {[%clk 0:00:56]} 23. Nd6 {[%clk 0:00:41]}  Rc7 {[%clk 0:00:56]} 24. Bf3 {[%clk 0:00:37]}  Nc6 {[%clk 0:00:53]} 25. d5 {[%clk 0:00:25]}  exd5 {[%clk 0:00:49]} 26. Re8+ {[%clk 0:00:25]}  Kh7 {[%clk 0:00:41]} 27. Nxf7 {[%clk 0:00:10]} 1-0


[Site "https://www.chess.com"]